bitfinex/quotes_BTCUSD_20241206
["timestamp","ask_amount","ask_price","bid_price","bid_amount"]
[1733503584664,0.0008667,99100.0,99099.0,1.30430354]
[1733503584921,0.0008667,99100.0,99099.0,1.18281973]
[1733503585168,0.0008667,99100.0,99099.0,1.03281973]
[1733503585451,0.0008667,99100.0,99099.0,1.06536597]
[1733503585698,0.0008667,99100.0,99099.0,1.03281973]
[1733503586189,0.0008667,99100.0,99099.0,1.05493423]
[1733503586423,0.0008667,99100.0,99099.0,1.04693423]
[1733503586656,0.0008667,99100.0,99099.0,1.45338599]
[1733503586898,0.0008667,99100.0,99099.0,1.4305978]
[1733503587127,0.0008667,99100.0,99099.0,0.12314604]
[1733503587741,0.0008667,99100.0,99099.0,0.007]
[1733503587742,0.06149607,99100.0,99099.0,0.007]
[1733503588067,0.15,99094.0,99088.0,0.18030643]
[1733503588268,0.15,99094.0,99052.0,0.30481288]
[1733503588269,0.201844,99086.0,99083.0,0.18030643]
[1733503588494,0.1267,99095.0,99081.0,0.18030643]
[1733503588495,0.201848,99085.0,99081.0,0.18030643]
[1733503588726,0.201848,99085.0,99083.0,0.18032777]
[1733503589009,0.201848,99085.0,99083.0,0.2254175]
[1733503589210,0.201848,99085.0,99084.0,0.2254175]
[1733503589455,0.201848,99085.0,99050.0,0.30431363]
[1733503589456,0.201848,99085.0,99083.0,0.001]
[1733503589681,0.201848,99085.0,99084.0,0.18030619]
[1733503589914,0.203848,99085.0,99082.0,0.22537805]
[1733503590177,0.203848,99085.0,99083.0,0.22537805]
[1733503590178,0.405696,99085.0,99083.0,0.22537805]
[1733503590689,0.405696,99085.0,99082.0,0.22537805]
[1733503591138,0.408696,99085.0,99082.0,0.22537805]
[1733503591368,0.20185,99083.0,99082.0,0.22537805]
[1733503592070,0.20185,99083.0,99050.0,0.141342]
[1733503592071,0.20131518,99083.0,99081.0,0.22537805]
[1733503592296,0.20131518,99083.0,99080.0,0.22537805]
[1733503592738,0.002,99085.0,99081.0,0.22537805]
[1733503592960,0.002,99083.0,99081.0,0.10503154]
[1733503593219,0.002,99083.0,99081.0,0.37541688]
[1733503593220,0.004,99083.0,99081.0,0.37541688]
[1733503594158,0.004,99083.0,99081.0,0.10503154]
[1733503594371,0.002,99083.0,99081.0,0.10503154]
[1733503594820,0.201818,99099.0,99081.0,0.37541688]
[1733503595047,0.201822,99097.0,99096.0,0.1802091]
[1733503595284,0.201822,99097.0,99096.0,0.33028991]
[1733503595532,0.201818,99099.0,99096.0,0.33028991]
[1733503595533,0.201818,99099.0,99096.0,0.10503154]
[1733503595980,0.201809,99104.0,99098.0,0.22521025]
[1733503596201,0.201818,99099.0,99097.0,0.22521025]
[1733503597397,0.201818,99099.0,99098.0,0.22521025]
[1733503597625,0.201818,99099.0,99097.0,0.22521025]
[1733503597873,0.204818,99099.0,99097.0,0.22515317]
[1733503598096,0.201798,99109.0,99098.0,0.33018471]
[1733503598333,0.201798,99109.0,99098.0,0.10503154]
[1733503598551,0.002,99099.0,99098.0,0.10503154]
[1733503598766,0.004,99099.0,99098.0,0.10503154]
[1733503599185,0.002,99099.0,99098.0,0.10503154]
[1733503599410,0.0008674,99110.0,99098.0,0.10503154]
[1733503599411,0.201805,99106.0,99098.0,0.10503154]
[1733503599656,0.201805,99106.0,99098.0,0.11731298]
[1733503599909,0.0008674,99110.0,99098.0,0.11731298]
[1733503600137,0.0008674,99110.0,99099.0,0.131181]
[1733503600366,0.0008674,99110.0,99099.0,0.23621254]
[1733503601252,0.0008674,99110.0,99099.0,0.10503154]
[1733503601675,0.0008674,99110.0,99099.0,0.10803154]
[1733503602107,0.0008674,99110.0,99099.0,0.10703154]
[1733503602327,0.0008674,99110.0,99099.0,0.11103154]
[1733503602994,0.2026634,99110.0,99099.0,0.11103154]
[1733503603216,0.2026634,99110.0,99099.0,0.38090289]
[1733503603217,0.201806,99105.0,99099.0,0.38090289]
[1733503603481,0.4044604,99110.0,99099.0,0.11103154]
[1733503603688,0.00126132,99109.0,99099.0,0.11103154]
[1733503603910,0.201807,99105.0,99099.0,0.11103154]
[1733503604148,0.201807,99105.0,99099.0,0.10503154]
[1733503604367,0.201807,99105.0,99099.0,0.10603154]
[1733503604580,0.201808,99104.0,99099.0,0.11728513]
[1733503604794,0.201808,99104.0,99099.0,0.11628513]
[1733503605003,0.201808,99104.0,99099.0,0.11728513]
[1733503605900,0.201808,99104.0,99099.0,0.11628513]
[1733503606112,0.201808,99104.0,99099.0,0.34312932]
[1733503606537,0.201808,99104.0,99099.0,0.33187573]
[1733503607396,0.201808,99104.0,99099.0,0.32987556]
[1733503607617,0.201808,99104.0,99099.0,0.10703154]
[1733503607835,0.201808,99104.0,99099.0,0.32986953]
[1733503608308,0.0001667,99100.0,99099.0,0.33186953]
[1733503608531,0.0001667,99100.0,99099.0,0.10503154]
[1733503608753,0.0001667,99100.0,99088.0,1.1098]
[1733503608754,0.20183,99093.0,99088.0,0.26981283]
[1733503608975,0.20183,99093.0,99080.0,0.399262]
[1733503608976,0.201842,99087.0,99082.0,0.26981283]
[1733503609202,0.15126165,99086.0,99080.0,0.0008665]
[1733503609434,0.201855,99081.0,99080.0,0.0008665]
[1733503609672,0.351855,99081.0,99080.0,0.0008665]
[1733503611481,0.354855,99081.0,99080.0,0.0008665]
[1733503611866,0.357855,99081.0,99080.0,0.0008665]
[1733503616863,0.207855,99081.0,99080.0,0.0008665]
[1733503617924,0.207855,99081.0,99080.0,0.18129438]
[1733503618149,0.201855,99081.0,99080.0,0.0008665]
[1733503618572,0.206855,99081.0,99080.0,0.0008665]
[1733503618878,0.203855,99081.0,99080.0,0.0008665]
[1733503619082,0.7110797,99081.0,99080.0,0.0008665]
[1733503619308,0.05,99060.0,99059.0,0.22553138]
[1733503619552,0.201912,99053.0,99050.0,0.01116682]
[1733503619761,0.00126207,99052.0,99043.0,0.26981283]
[1733503619952,0.00126207,99052.0,99029.0,0.141372]
[1733503619953,0.201901,99058.0,99046.0,0.26981283]
[1733503620123,0.00126203,99057.0,99050.0,0.26981283]
[1733503620325,0.201888,99065.0,99054.0,0.26981283]
[1733503620528,0.15,99074.0,99051.0,0.10503154]
[1733503620529,0.00126194,99064.0,99058.0,0.26981283]
[1733503620775,0.201896,99061.0,99057.0,0.26981283]
[1733503620976,0.00126192,99060.0,99057.0,0.26981283]
[1733503621178,0.201899,99059.0,99057.0,0.26981283]
[1733503621490,0.00126192,99058.0,99054.0,0.26981283]
[1733503621698,0.20316498,99057.0,99053.0,0.26981283]
[1733503621903,0.40506898,99057.0,99054.0,0.26981283]
[1733503622724,0.40506898,99057.0,99053.0,0.28096512]
[1733503622925,0.40506898,99057.0,99054.0,0.26981283]
[1733503623133,0.40506898,99057.0,99053.0,0.01115229]
[1733503623134,0.40506898,99057.0,99053.0,0.26981283]
[1733503623550,0.40506898,99057.0,99052.0,0.26981283]
[1733503623758,0.201912,99053.0,99051.0,0.26981283]
[1733503623960,0.001262,99052.0,99051.0,0.26981283]
[1733503624576,0.201916,99051.0,99050.0,0.0008665]
[1733503624791,0.201916,99051.0,99050.0,0.22644735]
[1733503625006,0.201916,99051.0,99050.0,0.0008665]
[1733503626089,0.352916,99051.0,99050.0,0.0008665]
[1733503626544,0.60109064,99051.0,99050.0,5e-07]
[1733503626778,0.6121364,99051.0,99050.0,5e-07]
[1733503627027,0.6131364,99051.0,99050.0,5e-07]
[1733503627289,0.6940364,99051.0,99050.0,5e-07]
[1733503627545,0.6940364,99051.0,99020.0,0.0008668]
[1733503627546,0.432856,99031.0,99020.0,0.0008668]
[1733503627772,0.53788754,99031.0,99020.0,0.0008668]
[1733503628968,0.63738754,99031.0,99030.0,6e-07]
[1733503629198,0.65686941,99031.0,99030.0,6e-07]
[1733503630394,0.66186941,99031.0,99030.0,6e-07]
[1733503630638,0.76676433,99031.0,99030.0,6e-07]
[1733503632279,0.76676433,99031.0,99020.0,0.0008668]
[1733503632280,0.476977,99021.0,99020.0,4e-07]
[1733503632530,0.62920854,99021.0,99020.0,4e-07]
[1733503633022,0.476997,99011.0,99010.0,0.0017338]
[1733503633254,0.64992754,99011.0,99010.0,0.0017338]
[1733503633725,0.58202854,99011.0,99010.0,0.0017338]
[1733503634221,0.476997,99011.0,99010.0,0.0017338]
[1733503634929,0.484997,99011.0,99010.0,0.0027338]
[1733503635391,0.434997,99011.0,99010.0,0.0027338]
[1733503635624,0.218997,99011.0,99010.0,0.0037338]
[1733503636085,0.210997,99011.0,99010.0,0.0027338]
[1733503636319,0.210997,99011.0,99010.0,0.0017338]
[1733503636320,0.201997,99011.0,99010.0,0.0017338]
[1733503636578,0.208997,99011.0,99010.0,0.0027338]
[1733503636808,0.210997,99011.0,99010.0,0.0027338]
[1733503637309,0.215997,99011.0,99010.0,0.0027338]
[1733503637560,0.415997,99011.0,99010.0,0.0027338]
[1733503637795,0.410997,99011.0,99010.0,0.0027338]
[1733503638036,0.410997,99011.0,99010.0,0.0017338]
[1733503638037,0.406997,99011.0,99010.0,0.0017338]
[1733503638258,0.47954515,99011.0,99010.0,0.0017338]
[1733503638500,0.48854515,99011.0,99010.0,0.0027338]
[1733503638762,0.53227769,99011.0,99010.0,0.0027338]
[1733503639467,0.61567769,99011.0,99010.0,0.0027338]
[1733503639915,0.59367769,99011.0,99010.0,0.0017338]
[1733503640165,0.59867769,99011.0,99010.0,0.0017338]
[1733503640682,0.36824615,99011.0,99010.0,0.0017338]
[1733503640912,0.356997,99011.0,99010.0,0.0017338]
[1733503641138,0.215997,99011.0,99010.0,0.0027338]
[1733503642077,0.206997,99011.0,99010.0,0.0017338]
[1733503642315,0.214997,99011.0,99010.0,0.0027338]
[1733503642822,0.013,99011.0,99010.0,0.10776534]
[1733503643048,0.201964,99028.0,99011.0,0.222598]
[1733503643272,0.00126236,99027.0,99012.0,0.10503154]
[1733503643492,0.01142157,99045.0,99012.0,0.10503154]
[1733503643493,0.201967,99026.0,99012.0,0.10503154]
[1733503643731,0.05,99043.0,99012.0,0.10503154]
[1733503643950,0.201977,99022.0,99012.0,0.28419657]
[1733503644615,0.00126236,99021.0,99012.0,0.17916503]
[1733503644842,0.005,99011.0,99010.0,0.0027338]
[1733503645062,0.206997,99011.0,99010.0,0.0027338]
[1733503645277,0.206997,99011.0,99010.0,0.0017338]
[1733503645761,0.351997,99011.0,99010.0,0.0017338]
[1733503646219,0.351997,99011.0,99010.0,0.0057338]
[1733503646686,0.201997,99011.0,99010.0,0.0057338]
[1733503647135,0.208997,99011.0,99010.0,0.0067338]
[1733503647631,0.201997,99011.0,99010.0,0.0057338]
[1733503647849,0.201997,99011.0,99010.0,0.0017338]
[1733503648087,0.205997,99011.0,99010.0,0.0017338]
[1733503648316,0.208997,99011.0,99010.0,0.0017338]
[1733503648766,0.212997,99011.0,99010.0,0.0017338]
[1733503649225,0.205997,99011.0,99010.0,0.0017338]
[1733503649518,0.209997,99011.0,99010.0,0.0017338]
[1733503649751,0.201997,99011.0,99010.0,0.0017338]
[1733503650253,0.203997,99011.0,99010.0,0.0017338]
[1733503650761,0.201997,99011.0,99010.0,0.0017338]
[1733503650980,0.203997,99011.0,99010.0,0.0017338]
[1733503651237,0.206997,99011.0,99010.0,0.0017338]
[1733503651507,0.201997,99011.0,99010.0,0.0517338]
[1733503651749,0.205997,99011.0,99010.0,0.0517338]
[1733503651975,0.203997,99011.0,99010.0,0.0517338]
[1733503652419,0.205997,99011.0,99010.0,0.0517338]
[1733503652631,0.203997,99011.0,99010.0,0.0517338]
[1733503653297,0.205997,99011.0,99010.0,0.0517338]
[1733503654508,0.283297,99011.0,99010.0,0.0517338]
[1733503654732,0.283297,99011.0,99002.0,0.26952396]
[1733503654733,0.479097,99011.0,99008.0,0.0113338]
[1733503654973,0.05,99009.0,99008.0,0.0113338]
[1733503655465,0.402003,99008.0,99007.0,0.0113338]
[1733503655692,0.402003,99008.0,99006.0,0.0113338]
[1733503655693,0.15,99007.0,99006.0,0.0113338]
[1733503655906,0.352006,99007.0,99006.0,0.0113338]
[1733503656151,0.202012,99004.0,99002.0,0.0113338]
[1733503656379,0.14910085,99003.0,99002.0,0.0113338]
[1733503657125,0.05,99001.0,99000.0,6e-07]
[1733503657357,0.1562944,99001.0,99000.0,6e-07]
[1733503658269,0.2451944,99001.0,99000.0,6e-07]
[1733503658488,0.15,98992.0,98990.0,0.0017348]
[1733503658716,0.63853249,98991.0,98990.0,8e-07]
[1733503658939,0.05,98982.0,98979.0,0.17956679]
[1733503659156,0.15,98980.0,98979.0,0.17956679]
[1733503659380,0.202057,98982.0,98966.0,0.27014954]
[1733503659662,0.202057,98982.0,98962.0,0.0761]
[1733503659663,0.202067,98977.0,98976.0,0.2251634]
[1733503659886,0.15,98990.0,98974.0,0.2251874]
[1733503660146,0.202065,98978.0,98977.0,0.22517926]
[1733503660387,0.00126298,98989.0,98977.0,0.22517926]
[1733503660388,0.202063,98979.0,98977.0,0.2251763]
[1733503660603,0.404126,98979.0,98978.0,0.2251763]
[1733503661252,0.001,98978.0,98977.0,0.2251763]
[1733503661491,0.001,98978.0,98969.0,0.27014954]
[1733503661719,0.00126304,98977.0,98969.0,0.27014954]
[1733503662196,0.202077,98972.0,98971.0,0.27014954]
[1733503662634,0.202093,98965.0,98963.0,0.39889268]
[1733503662852,0.202093,98965.0,98964.0,0.10503154]
[1733503663074,0.202093,98965.0,98963.0,0.10468154]
[1733503664633,0.202093,98965.0,98963.0,0.50557422]
[1733503664892,0.202093,98965.0,98963.0,0.002]
[1733503665366,0.00126317,98964.0,98963.0,0.002]
[1733503666314,0.00126317,98964.0,98960.0,0.0017346]
[1733503666315,0.40419,98963.0,98960.0,0.0017346]
[1733503666536,0.202095,98963.0,98961.0,0.27071838]
[1733503666760,0.404191,98963.0,98960.0,0.27245298]
[1733503666999,0.404191,98963.0,98961.0,0.27071838]
[1733503667219,0.404191,98963.0,98960.0,0.27245298]
[1733503667710,0.202089,98966.0,98960.0,0.10676614]
[1733503667935,0.202089,98966.0,98964.0,0.27075551]
[1733503668162,0.202089,98966.0,98961.0,0.10503154]
[1733503668391,0.202089,98966.0,98961.0,0.10703154]
[1733503668392,0.404178,98966.0,98961.0,0.10703154]
[1733503668625,0.202089,98966.0,98961.0,0.10703154]
[1733503668848,0.404179,98966.0,98961.0,0.10503154]
[1733503669072,0.404179,98966.0,98965.0,0.27086271]
[1733503669546,0.404179,98966.0,98961.0,0.10503154]
[1733503669547,0.202089,98966.0,98961.0,0.10503154]
[1733503669774,0.202097,98962.0,98961.0,0.10503154]
[1733503670960,0.202067,98977.0,98961.0,0.10503154]
[1733503671176,0.15,98989.0,98976.0,0.27111063]
[1733503671401,0.202078,98972.0,98969.0,0.40031179]
[1733503671629,0.202086,98968.0,98961.0,0.10803154]
[1733503672284,0.202086,98968.0,98961.0,0.10603154]
[1733503672532,0.202094,98964.0,98961.0,0.10503154]
[1733503672975,0.202086,98968.0,98961.0,0.10503154]
[1733503673198,0.202086,98968.0,98961.0,0.10603154]
[1733503673661,0.202086,98968.0,98961.0,0.10503154]
[1733503674066,0.202094,98964.0,98961.0,0.10703154]
[1733503674304,0.202094,98964.0,98961.0,0.10903154]
[1733503674536,0.404188,98964.0,98961.0,0.10703154]
[1733503674766,0.404188,98964.0,98961.0,0.10503154]
[1733503675003,0.404188,98964.0,98961.0,0.10703154]
[1733503675256,0.404188,98964.0,98961.0,0.10503154]
[1733503675480,0.404188,98964.0,98961.0,0.10703154]
[1733503675936,0.404188,98964.0,98961.0,0.10803154]
[1733503676346,0.404188,98964.0,98961.0,0.10703154]
[1733503676628,0.404188,98964.0,98961.0,0.10903154]
[1733503676853,0.404188,98964.0,98961.0,0.10703154]
[1733503677561,0.404188,98964.0,98961.0,0.10903154]
[1733503678005,0.202097,98962.0,98961.0,0.004]
[1733503678887,0.202097,98962.0,98961.0,0.002]
[1733503679140,0.4127247,98962.0,98961.0,0.002]
[1733503679372,0.4127247,98962.0,98961.0,0.003]
[1733503679592,0.4127247,98962.0,98960.0,0.0017346]
[1733503679849,0.20126333,98961.0,98960.0,6e-07]
[1733503680083,0.2,98961.0,98960.0,6e-07]
[1733503680315,0.29624211,98961.0,98960.0,6e-07]
[1733503680544,0.34494211,98961.0,98960.0,6e-07]
[1733503681230,0.1987,98961.0,98960.0,6e-07]
[1733503681465,0.2067,98961.0,98960.0,6e-07]
[1733503681686,0.1987,98961.0,98960.0,6e-07]
[1733503682141,0.2077,98961.0,98960.0,6e-07]
[1733503682355,0.1987,98961.0,98960.0,6e-07]
[1733503683294,0.39677924,98961.0,98960.0,0.0010006]
[1733503683532,0.40377924,98961.0,98960.0,0.0010006]
[1733503683758,0.39877924,98961.0,98960.0,6e-07]
[1733503683969,0.39877924,98961.0,98960.0,0.0010006]
[1733503683970,0.39677924,98961.0,98960.0,0.0010006]
[1733503684216,0.40477924,98961.0,98960.0,0.0010006]
[1733503684437,0.39177924,98961.0,98960.0,6e-07]
[1733503684901,0.40577924,98961.0,98960.0,0.0010006]
[1733503685119,0.39677924,98961.0,98960.0,0.0010006]
[1733503685350,0.40577924,98961.0,98960.0,0.0010006]
[1733503685811,0.2127,98961.0,98960.0,0.0010006]
[1733503686770,0.2077,98961.0,98960.0,6e-07]
[1733503687004,0.2137,98961.0,98960.0,0.0010006]
[1733503688671,0.015,98961.0,98960.0,0.0010006]
[1733503688895,0.01626328,98961.0,98960.0,0.0010006]
[1733503689127,0.015,98961.0,98960.0,0.0010006]
[1733503689589,0.01626325,98961.0,98960.0,0.0010006]
[1733503689829,0.01026325,98961.0,98960.0,6e-07]
[1733503690099,0.01426325,98961.0,98960.0,6e-07]
[1733503690294,0.00526325,98961.0,98960.0,6e-07]
[1733503690508,0.00126325,98961.0,98960.0,6e-07]
[1733503690739,0.00726325,98961.0,98960.0,6e-07]
[1733503690944,0.00726325,98961.0,98960.0,0.0010006]
[1733503691371,0.15126325,98961.0,98960.0,6e-07]
[1733503691576,0.15726325,98961.0,98960.0,0.0010006]
[1733503691782,0.16626325,98961.0,98960.0,0.0010006]
[1733503692216,0.17717197,98961.0,98960.0,0.0010006]
[1733503692706,0.36054841,98961.0,98960.0,0.0010006]
[1733503692921,0.36054841,98961.0,98950.0,0.0017342]
[1733503692922,0.15,98954.0,98950.0,0.0017342]
[1733503693147,0.00126343,98953.0,98950.0,0.0017342]
[1733503693583,0.35212,98951.0,98950.0,0.0017342]
[1733503693803,0.20212,98951.0,98950.0,0.0017342]
[1733503694710,0.20812,98951.0,98950.0,0.0017342]
[1733503694933,0.21212,98951.0,98950.0,0.0017342]
[1733503695152,0.20612,98951.0,98950.0,0.0017342]
[1733503695373,0.20912,98951.0,98950.0,0.0017342]
[1733503696763,0.003,98951.0,98950.0,0.10676574]
[1733503696982,0.01,98951.0,98950.0,0.10676574]
[1733503697198,0.003,98951.0,98950.0,0.10676574]
[1733503697422,0.202119,98952.0,98950.0,0.0017342]
[1733503697641,0.00226334,98951.0,98950.0,0.0017342]
[1733503697864,0.00326334,98951.0,98950.0,0.0017342]
[1733503698102,0.00326334,98951.0,98950.0,0.0027342]
[1733503698312,0.00226334,98951.0,98950.0,0.0027342]
[1733503698528,0.00126334,98951.0,98950.0,0.0017342]
[1733503699884,0.203119,98952.0,98950.0,0.0017342]
[1733503700118,0.202119,98952.0,98950.0,0.0017342]
[1733503700347,0.002,98951.0,98950.0,0.40186083]
[1733503700557,0.002,98951.0,98950.0,0.0017342]
[1733503700767,0.001,98951.0,98950.0,0.0017342]
[1733503701201,0.203119,98952.0,98950.0,0.0017342]
[1733503701420,0.202119,98952.0,98950.0,0.0017342]
[1733503702741,0.202119,98952.0,98950.0,0.40278236]
[1733503702968,0.21189684,98951.0,98950.0,0.0017342]
[1733503703201,0.21189684,98951.0,98950.0,0.22641258]
[1733503703202,0.15,98951.0,98950.0,0.22641258]
[1733503703422,0.15,98951.0,98950.0,0.18112181]
[1733503703423,0.15126341,98951.0,98950.0,0.18112181]
[1733503703641,0.15126341,98951.0,98950.0,2e-07]
[1733503703865,0.15126341,98951.0,98950.0,0.18112181]
[1733503704084,0.15126341,98951.0,98950.0,2e-07]
[1733503704347,0.15526341,98951.0,98950.0,2e-07]
[1733503704583,0.16126341,98951.0,98950.0,2e-07]
[1733503707924,0.01126345,98951.0,98950.0,2e-07]
[1733503711658,0.01126345,98951.0,98950.0,0.18113151]
[1733503712369,0.01126345,98951.0,98950.0,2e-07]
[1733503712604,0.01126345,98951.0,98950.0,0.226399]
[1733503713532,0.01126345,98951.0,98950.0,2e-07]
[1733503713762,0.01126345,98951.0,98950.0,0.226399]
[1733503714662,0.01126345,98951.0,98950.0,2e-07]
[1733503714921,0.0112634,98951.0,98950.0,2e-07]
[1733503717015,0.01126328,98951.0,98950.0,2e-07]
[1733503717232,0.01,98951.0,98950.0,2e-07]
[1733503718386,0.01126329,98951.0,98950.0,2e-07]
[1733503719061,0.01,98951.0,98950.0,2e-07]
[1733503719981,0.004,98951.0,98950.0,2e-07]
[1733503720346,0.202119,98952.0,98950.0,2e-07]
[1733503720546,0.01,98951.0,98950.0,0.40110608]
[1733503720770,0.004,98951.0,98950.0,0.40110608]
[1733503720969,0.202119,98952.0,98950.0,0.41209873]
[1733503721236,0.202119,98952.0,98951.0,0.40110588]
[1733503721595,0.202119,98952.0,98950.0,0.11602439]
[1733503722238,0.202119,98952.0,98950.0,0.10503174]
[1733503722481,0.202119,98952.0,98950.0,2e-07]
[1733503722482,0.00126323,98951.0,98950.0,2e-07]
[1733503722918,0.202119,98952.0,98950.0,2e-07]
[1733503723382,0.00126328,98951.0,98950.0,2e-07]
[1733503724041,0.00326328,98951.0,98950.0,2e-07]
[1733503725350,0.00126328,98951.0,98950.0,2e-07]
[1733503725564,0.00126328,98951.0,98950.0,0.0010002]
[1733503726010,0.00126328,98951.0,98950.0,2e-07]
[1733503726230,0.00126328,98951.0,98950.0,0.0010002]
[1733503726446,0.00126328,98951.0,98950.0,2e-07]
[1733503726885,0.00126328,98951.0,98950.0,0.0010002]
[1733503727109,0.00126328,98951.0,98950.0,2e-07]
[1733503727330,0.202119,98952.0,98950.0,2e-07]
[1733503727598,0.20211,98956.0,98951.0,0.10503154]
[1733503727838,0.202115,98954.0,98951.0,0.10503154]
[1733503728069,0.202115,98954.0,98950.0,2e-07]
[1733503728292,0.00126326,98953.0,98950.0,2e-07]
[1733503728506,0.00126326,98953.0,98952.0,0.401845]
[1733503728731,0.202118,98952.0,98950.0,0.0010002]
[1733503729194,0.202118,98952.0,98950.0,2e-07]
[1733503729410,0.00126337,98951.0,98950.0,2e-07]
[1733503729619,0.00126336,98951.0,98950.0,2e-07]
[1733503731354,0.00226336,98951.0,98950.0,2e-07]
[1733503731778,0.00526336,98951.0,98950.0,2e-07]
[1733503731977,0.003,98951.0,98950.0,2e-07]
[1733503732398,0.005,98951.0,98950.0,0.40187617]
[1733503732615,0.003,98951.0,98950.0,0.40187617]
[1733503733036,0.003,98951.0,98950.0,2e-07]
[1733503733484,0.005,98951.0,98950.0,0.10503174]
[1733503733678,0.002,98951.0,98950.0,0.10503174]
[1733503735017,0.2021,98961.0,98950.0,0.10503174]
[1733503735235,0.202107,98958.0,98956.0,0.40183332]
[1733503735447,0.202107,98958.0,98951.0,0.10503154]
[1733503735448,0.202095,98964.0,98957.0,0.50686486]
[1733503735654,0.202083,98969.0,98957.0,0.10503154]
[1733503735864,0.0017352,98970.0,98958.0,0.141474]
[1733503736075,0.0017352,98970.0,98959.0,0.18693154]
[1733503736290,0.0017352,98970.0,98950.0,0.0020002]
[1733503736487,0.0017352,98970.0,98951.0,0.10503154]
[1733503736488,0.202099,98962.0,98951.0,0.10503154]
[1733503737194,0.001,98958.0,98951.0,0.10503154]
[1733503737386,0.002,98958.0,98952.0,0.141482]
[1733503737614,0.002,98958.0,98953.0,0.10503154]
[1733503737818,0.001,98958.0,98953.0,0.10503154]
[1733503738446,0.0027352,98960.0,98953.0,0.10503154]
[1733503738658,0.0017352,98960.0,98953.0,0.10503154]
[1733503738929,0.0017352,98960.0,98953.0,0.10703154]
[1733503739115,0.0037352,98960.0,98953.0,0.10703154]
[1733503739536,0.0017352,98960.0,98953.0,0.10703154]
[1733503739854,0.0017352,98960.0,98953.0,0.10903154]
[1733503740079,0.0017352,98960.0,98953.0,0.10703154]
[1733503740328,0.0017352,98960.0,98953.0,0.10503154]
[1733503740545,0.0017352,98960.0,98953.0,0.10603154]
[1733503741653,0.0017352,98960.0,98953.0,0.10803154]
[1733503744327,0.0017352,98960.0,98957.0,0.282949]
[1733503744561,0.0017352,98960.0,98958.0,0.10503154]
[1733503744796,0.0017352,98960.0,98959.0,0.141472]
[1733503745008,0.0017352,98960.0,98959.0,0.24650354]
[1733503745668,0.0027352,98960.0,98959.0,0.32250354]
[1733503746088,0.0027352,98960.0,98959.0,0.3428038]
[1733503746311,0.0037352,98960.0,98959.0,0.3448038]
[1733503747027,0.0037352,98960.0,98959.0,0.3488038]
[1733503748593,0.0037352,98960.0,98959.0,0.2073318]
[1733503749251,0.0037352,98960.0,98959.0,0.11103154]
[1733503750405,0.0037352,98960.0,98959.0,0.10703154]
[1733503750608,0.0037352,98960.0,98959.0,0.11103154]
[1733503751051,0.0037352,98960.0,98959.0,0.10703154]
[1733503751498,0.0037352,98960.0,98959.0,0.11003154]
[1733503752178,0.0017352,98960.0,98959.0,0.10803154]
[1733503752406,0.0017352,98960.0,98959.0,0.11203154]
[1733503752407,0.0027352,98960.0,98959.0,0.11203154]
[1733503752843,0.0017352,98960.0,98959.0,0.10803154]
[1733503753103,0.0027352,98960.0,98959.0,0.11203154]
[1733503753311,0.0027352,98960.0,98959.0,0.10503154]
[1733503753537,0.0027352,98960.0,98959.0,0.10803154]
[1733503753748,0.0037352,98960.0,98959.0,0.11203154]
[1733503753958,0.0037352,98960.0,98959.0,0.10903154]
[1733503754379,0.0037352,98960.0,98959.0,0.11203154]
[1733503755267,0.0017352,98960.0,98959.0,0.10803154]
[1733503755752,0.0027352,98960.0,98959.0,0.10803154]
[1733503756179,0.0037352,98960.0,98959.0,0.11203154]
[1733503760741,0.0037352,98960.0,98959.0,0.25350354]
[1733503762364,0.0037352,98960.0,98959.0,0.11203154]
[1733503763047,0.0017352,98960.0,98959.0,0.10503154]
[1733503763290,0.0027352,98960.0,98959.0,0.10903154]
[1733503763475,0.0027352,98960.0,98959.0,0.11203154]
[1733503763946,0.0027352,98960.0,98959.0,0.10903154]
[1733503764181,0.0027352,98960.0,98959.0,0.11203154]
[1733503764867,0.0017352,98960.0,98959.0,0.10803154]
[1733503765084,0.0027352,98960.0,98959.0,0.11203154]
[1733503765331,0.0027352,98960.0,98959.0,0.10803154]
[1733503765332,0.0017352,98960.0,98959.0,0.10803154]
[1733503765567,0.0017352,98960.0,98959.0,0.10503154]
[1733503765822,0.0027352,98960.0,98959.0,0.11203154]
[1733503766035,0.0027352,98960.0,98959.0,0.26203154]
[1733503766263,0.0027352,98960.0,98959.0,0.30903154]
[1733503766479,0.0017352,98960.0,98959.0,0.30803154]
[1733503766722,0.0017352,98960.0,98959.0,0.36203154]
[1733503766723,0.0027352,98960.0,98959.0,0.36203154]
[1733503767408,0.0027352,98960.0,98959.0,0.66458804]
[1733503767622,0.0027352,98960.0,98959.0,0.61458804]
[1733503767841,0.0027352,98960.0,98959.0,0.66458804]
[1733503768059,0.0017352,98960.0,98959.0,0.35503154]
[1733503768290,0.0017352,98960.0,98959.0,0.66058804]
[1733503768517,0.0027352,98960.0,98959.0,0.36103154]
[1733503768726,0.0017352,98960.0,98959.0,0.35903154]
[1733503768956,0.0017352,98960.0,98959.0,0.47128602]
[1733503769169,0.0006768,98960.0,98959.0,0.44363154]
[1733503769674,0.0017352,98970.0,98969.0,0.416758]
[1733503769880,0.0017352,98970.0,98969.0,0.52178954]
[1733503772380,0.0037352,98970.0,98969.0,0.53678954]
[1733503772602,0.0037352,98970.0,98969.0,0.52778954]
[1733503772603,0.0027352,98970.0,98969.0,0.52778954]
[1733503772815,0.0027352,98970.0,98969.0,0.54136016]
[1733503773039,0.0027352,98970.0,98969.0,0.54636016]
[1733503773263,0.0017352,98970.0,98969.0,0.53736016]
[1733503773935,0.0017352,98970.0,98969.0,0.53236016]
[1733503774790,0.0027352,98970.0,98969.0,0.54136016]
[1733503775214,0.0027352,98970.0,98969.0,0.53236016]
[1733503775215,0.0017352,98970.0,98969.0,0.53236016]
[1733503775432,0.0027352,98970.0,98969.0,0.54136016]
[1733503775653,0.0027352,98970.0,98969.0,0.53236016]
[1733503775877,0.0037352,98970.0,98969.0,0.53736016]
[1733503776142,0.0047352,98970.0,98969.0,0.54636016]
[1733503776356,0.0037352,98970.0,98969.0,0.54136016]
[1733503776804,0.0047352,98970.0,98969.0,0.54736016]
[1733503777770,0.0759,99005.0,99004.0,0.141408]
[1733503778004,0.0759,99005.0,99004.0,0.24643954]
[1733503779142,0.0017342,99020.0,99008.0,0.141402]
[1733503779143,0.0756,99013.0,99008.0,0.141402]
[1733503779365,0.0756,99013.0,99010.0,0.141399]